fUSD/lending_fUSD_20240327
["ID","MTS","AMOUNT","RATE_DAILY","PERIOD"]
[320779597,1711554638703,-23900.0,0.00031312,2]
[320779599,1711554638712,-365.65,0.00031339,2]
[320779601,1711554638721,-158.39,0.00031464,2]
[320779603,1711554638731,-394.17427848,0.00031464,2]
[320779605,1711554638740,-394.17427848,0.00031464,2]
[320779607,1711554638750,-394.17427848,0.00031464,2]
[320779609,1711554638762,-394.17427848,0.00031464,2]
[320779612,1711554638772,-394.17427848,0.00031464,2]
[320779614,1711554638785,-394.17427848,0.00031464,2]
[320779616,1711554638794,-394.17427848,0.00031464,2]
[320779618,1711554638805,-394.17427848,0.00031464,2]
[320779620,1711554638814,-394.17427848,0.00031464,2]
[320779622,1711554638824,-394.17427848,0.00031464,2]
[320779624,1711554638834,-394.17427848,0.00031464,2]
[320779626,1711554638844,-394.17427848,0.00031464,2]
[320779628,1711554638853,-394.17427848,0.00031464,2]
[320779630,1711554638862,-394.17427848,0.00031464,2]
[320779632,1711554638872,-394.17427848,0.00031464,2]
[320779634,1711554638882,-394.17427848,0.00031464,2]
[320779636,1711554638891,-394.17427848,0.00031464,2]
[320779638,1711554638901,-394.17427848,0.00031464,2]
[320779640,1711554638910,-394.17427848,0.00031464,2]
[320779642,1711554638920,-394.17427848,0.00031464,2]
[320779644,1711554638930,-394.17427848,0.00031464,2]
[320779646,1711554638940,-394.17427848,0.00031464,2]
[320779648,1711554638950,-394.17427848,0.00031464,2]
[320779650,1711554638964,-4983.8396497,0.00031474,2]
[320779654,1711554638985,-617.92632914,0.00031474,2]
[320779656,1711554638997,-3617.09405753,0.00031474,2]
[320779658,1711554639010,-1439.95149274,0.00031474,2]
[320779661,1711554639026,-2535.08706433,0.00031474,2]
[320779664,1711554639051,-1454.06020036,0.00031474,2]
[320779667,1711554639063,-712.85127915,0.00031474,2]
[320779671,1711554639098,-557.0880465,0.00031474,2]
[320779673,1711554639110,-365.01999995,0.00031474,2]
[320779677,1711554639131,-984.40360009,0.00031474,2]
[320779679,1711554639144,-2065.97782778,0.00031474,2]
[320779749,1711554639755,-263.03590211,0.00031474,2]
[320779758,1711554639836,-1887.00000035,0.00031474,2]
[320779767,1711554639914,-1147.94373023,0.00031474,2]
[320779771,1711554639939,-468.77872989,0.00031474,2]
[320779782,1711554640037,-4479.9615307,0.00031474,2]
[320779784,1711554640049,-2088.54582403,0.00031474,2]
[320779786,1711554640061,-3283.99271428,0.00031474,2]
[320779894,1711554642725,-376.8021104,0.00019178,2]
[320779895,1711554642735,-103.23322629,0.00028668,2]
[320779896,1711554642746,-546.78000005,0.00028668,2]
[320779897,1711554643133,-515.02677366,0.00028668,2]
[320779898,1711554643142,-6566.39967273,0.00031474,2]
[320779899,1711554643158,-35866.06107191,0.00031474,2]
[320779900,1711554643168,-4309.09953051,0.00031574,2]
[320779901,1711554643178,-234.65,0.00031644,2]
[320779902,1711554643188,-150.3,0.00031784,2]
[320779903,1711554643197,-7032.13,0.0003235,2]
[320779904,1711554643207,-517.24,0.00032508,2]
[320779905,1711554643217,-2614.46,0.00032532,2]
[320779906,1711554643227,-731.95,0.00032548,15]
[320779907,1711554643236,-150.3,0.00032632,2]
[320779908,1711554643246,-320.0,0.00032698,120]
[320779909,1711554643255,-1000.0,0.00032838,2]
[320779910,1711554643268,-37513.83,0.00032877,2]
[320779911,1711554643277,-320.09,0.00032877,2]
[320779912,1711554643287,-2269.17,0.00032877,2]
[320779913,1711554643296,-400.0,0.00033,3]
[320779914,1711554643306,-157.86,0.00033293,2]
[320779916,1711554643315,-200.0,0.00033298,2]
[320779918,1711554643324,-157.86,0.00033326,2]
[320779920,1711554643334,-157.86,0.00033359,2]
[320779922,1711554643343,-157.86,0.00033392,2]
[320779924,1711554643352,-157.86,0.00033426,2]
[320779926,1711554643361,-157.86,0.00033459,2]
[320779928,1711554643371,-150.3,0.00033479,2]
[320779930,1711554643380,-168.89,0.00033783,2]
[320779932,1711554643389,-75385.01872342,0.00034237,2]
[320779949,1711554643525,-4309.09953044,0.00034326,2]
[320779951,1711554643538,-150.3,0.00034327,2]
[320779953,1711554643548,-150.0,0.00034548,10]
[320779955,1711554643557,-517.24,0.00034772,2]
[320779957,1711554643567,-450.0,0.00035,3]
[320779959,1711554643577,-150.3,0.00035175,2]
[320779961,1711554643586,-2614.46,0.00035272,2]
[320779963,1711554643596,-731.95,0.00035288,15]
[320779965,1711554643606,-983.40892492,0.0003569,5]
[320779967,1711554643616,-150.3,0.00036022,2]
[320779969,1711554643626,-1000.0,0.00036121,2]
[320779971,1711554643635,-158.38,0.00036438,2]
[320779973,1711554643644,-159.75953502,0.00036694,2]
[320779975,1711554643654,-320.0,0.00036785,120]
[320779977,1711554643663,-150.3,0.0003687,2]
[320779979,1711554643673,-180.0,0.00036986,2]
[320779981,1711554643682,-75385.01872342,0.00036999,2]
[320779983,1711554643692,-500.0,0.00037,3]
[320779985,1711554643702,-517.24,0.00037036,2]
[320779986,1711554643711,-4309.09953044,0.00037077,2]
[320779989,1711554643721,-150.3,0.00037718,2]
[320779991,1711554643731,-867.15561493,0.0003789,10]
[320779992,1711554643740,-168.89,0.00038006,2]
[320779994,1711554643750,-731.95,0.00038027,15]
[320779997,1711554643765,-1156.819569,0.00038531,2]
[320779998,1711554643775,-1874.03869476,0.00038538,2]
[320780000,1711554643785,-150.3,0.00038565,2]
[320780002,1711554643795,-355.2270806,0.00038589,10]
[320780004,1711554643805,-1000.0,0.00038904,120]
[320780006,1711554643815,-550.0,0.00039,3]
[320780009,1711554643827,-1156.819569,0.00039012,2]
[320780011,1711554643837,-1000.0,0.0003923,2]
[320780012,1711554643847,-517.24,0.00039299,2]
[320780014,1711554643857,-4141.58300096,0.00039339,4]
[320780017,1711554643867,-168.81827339,0.00039339,4]
[320780019,1711554643877,-1000.0,0.0003934,30]
[320780021,1711554643886,-854.93307856,0.0003934,5]
[320780023,1711554643896,-2597.27188107,0.0003934,4]
[320780025,1711554643907,-1000.0,0.00039405,2]
[320780027,1711554643918,-150.3,0.00039413,2]
[320780028,1711554643928,-1156.819569,0.00039494,2]
[320780031,1711554643938,-75385.01872342,0.00039762,2]
[320780032,1711554643948,-4309.09953044,0.00039829,2]
[320780035,1711554643957,-921.44,0.00039965,2]
[320780037,1711554643967,-1156.819569,0.00039976,2]
[320780039,1711554643977,-518.43781761,0.00039999,31]
[320780040,1711554643987,-225.09957668,0.00039999,31]
[320780042,1711554643997,-165.3772374,0.0004,2]
[320780044,1711554644007,-192.22165366,0.0004,2]
[320780047,1711554644020,-150.3,0.00040261,2]
[320780049,1711554644030,-1156.819569,0.00040457,2]
[320780050,1711554644040,-731.95,0.00040767,15]
[320780053,1711554644050,-320.0,0.00040873,120]
[320780055,1711554644060,-600.0,0.00041,3]
[320780057,1711554644070,-1500.0,0.00041096,120]
[320780059,1711554644080,-183.0,0.00041096,2]
[320780060,1711554644090,-150.3,0.00041108,2]
[320780063,1711554644101,-517.24,0.00041563,2]
[320780065,1711554644115,-150.3,0.00041956,2]
[320780066,1711554644126,-164.44615469,0.00042043,10]
[320780068,1711554644136,-168.89,0.00042229,2]
[320780071,1711554644147,-75385.01872342,0.00042525,2]
[320780073,1711554644156,-4309.09953044,0.0004258,2]
[320780075,1711554644166,-159.75953502,0.00042694,2]
[320780076,1711554644176,-150.3,0.00042804,2]
[320780079,1711554644188,-650.0,0.00043,3]
[320780081,1711554644198,-200.0,0.00043174,120]
[320780083,1711554644215,-731.95,0.00043507,15]
[320780084,1711554644225,-7032.13,0.00043583,2]
[320780087,1711554644235,-517.24,0.00043827,2]
[320780088,1711554644245,-1504.0,0.000441,2]
[320780091,1711554644255,-164.44615469,0.00044847,12]
[320780092,1711554644267,-320.0,0.0004496,120]
[320780095,1711554644277,-700.0,0.00045,3]
[320780097,1711554644286,-75385.01872342,0.00045287,2]
[320780099,1711554644296,-4309.09953044,0.00045332,2]
[320780101,1711554644306,-517.24,0.00046091,2]
[320780102,1711554644316,-731.95,0.00046247,15]
[320780104,1711554644326,-168.89,0.00046451,2]
[320780106,1711554644336,-766.99471972,0.0004658,2]
[320780108,1711554644345,-1504.0,0.000468,2]
[320780111,1711554644355,-750.0,0.00047,3]
[320780112,1711554644365,-246.11,0.00047209,2]
[320780115,1711554644375,-4698.8867997,0.00047389,30]
[320780117,1711554644385,-1085.84,0.00047542,2]
[320780118,1711554644394,-164.44615469,0.00047652,13]
[320780120,1711554644404,-75385.01872342,0.0004805,2]
[320780122,1711554644413,-4309.09953044,0.00048083,2]
[320780124,1711554644423,-517.24,0.00048355,2]
[320780127,1711554644433,-1000.0,0.000484,120]
[320780128,1711554644442,-500.0,0.00048594,2]
[320780131,1711554644452,-195.30838005,0.00048694,24]
[320780132,1711554644462,-159.75953502,0.00048694,2]
[320780135,1711554644472,-150.0149649,0.00048694,39]
[320780137,1711554644481,-173.1592138,0.00048694,2]
[320780138,1711554644491,-1111.0,0.000487,4]
[320780140,1711554644501,-1030.38903382,0.00048793,60]
[320780143,1711554644512,-214.48486766,0.00048794,4]
[320780145,1711554644522,-289795.89442802,0.00048794,4]
[320780147,1711554644531,-155.0,0.00048794,4]
[320780149,1711554644541,-3846.71319902,0.00048794,2]
[320780151,1711554644551,-6158.3479369,0.00048795,4]
[320780153,1711554644561,-273.526014,0.00048795,4]
[320780155,1711554644570,-1665.20482765,0.00048795,4]
[320780157,1711554644580,-41866.331975,0.00048796,7]
[320780159,1711554644590,-1577.82701751,0.00048796,4]
[320780161,1711554644600,-34183.02841058,0.00048797,30]
[320780163,1711554644610,-35997.09554105,0.00048798,10]
[320780165,1711554644619,-731.95,0.00048986,15]
[320780167,1711554644630,-3303.34437691,0.00049,2]
[320780169,1711554644642,-1000.0,0.00049,6]
[320780171,1711554644652,-320.0,0.00049047,120]
[320780173,1711554644662,-170.4708175,0.000493,2]
[320780175,1711554644672,-580.0560298,0.000493,2]
[320780177,1711554644682,-1000.0,0.00049315,60]
[320780179,1711554644691,-1138.0,0.00049711,7]
[320780181,1711554644701,-989.75447063,0.000499,6]
[320780183,1711554644711,-150.0149649,0.00049922,44]
[320780185,1711554644722,-14347.70374766,0.00049996,4]
[320780187,1711554644732,-200.93162727,0.00049996,4]
[320780189,1711554644742,-245.84012088,0.00049997,4]
[320780191,1711554644752,-555.11925325,0.00049997,4]
[320780193,1711554644762,-155.0,0.00049997,4]
[320780195,1711554644773,-277.90877333,0.00049998,4]
[320780197,1711554644782,-155.24592902,0.00049998,4]
[320780199,1711554644792,-1477.60038763,0.00049998,60]
[320780201,1711554644803,-251.55515893,0.00049998,4]
[320780203,1711554644813,-3360.64209275,0.00049998,4]
[320780205,1711554644823,-343.13863821,0.00049998,4]
[320780207,1711554644833,-155.13457552,0.00049998,4]
[320780209,1711554644844,-966.39828199,0.00049998,4]
[320780211,1711554644854,-286.44665473,0.00049998,4]
[320780213,1711554644863,-486.1144231,0.00049998,4]
[320780215,1711554644873,-155.86726149,0.00049998,4]
[320780217,1711554644883,-4389.92842065,0.00049998,4]
[320780219,1711554644892,-163.721946,0.00049998,4]
[320780221,1711554644902,-309.3776376,0.0005,2]
[320780223,1711554644912,-5000.0,0.0005,30]
[320780225,1711554644922,-2641.26513815,0.0005,30]
[320780227,1711554644932,-19192.93017925,0.0005,30]
[320780229,1711554644942,-1160.0,0.0005,120]
[320780231,1711554644952,-2000.0,0.0005,6]
[320780233,1711554644961,-874.31569971,0.00050164,4]
[320780235,1711554644971,-155.3472831,0.00050164,4]
[320780237,1711554644981,-575.24269143,0.00050164,4]
[320780239,1711554644991,-961.0,0.00050192,120]
[320780241,1711554645001,-2420.0,0.00050192,120]
[320780243,1711554645012,-458.0,0.00050192,120]
[320780245,1711554645022,-1381.0,0.00050192,120]
[320780247,1711554645031,-540.285,0.00050192,120]
[320780249,1711554645041,-1254.182,0.00050192,120]
[320780250,1711554645050,-1225.0,0.00050192,120]
[320780252,1711554645060,-1267.0,0.00050192,120]
[320780254,1711554645069,-433.0,0.00050192,120]
[320780256,1711554645080,-807.59,0.00050192,120]
[320780258,1711554645089,-610.765,0.00050192,120]
[320780260,1711554645099,-281.658,0.00050192,120]
[320780262,1711554645108,-2959.0,0.00050192,120]
[320780264,1711554645119,-1138.0,0.00050192,120]
[320780266,1711554645128,-1468.485,0.00050192,120]
[320780268,1711554645138,-218.296,0.00050192,120]
[320780270,1711554645148,-427.171,0.00050192,120]
[320780272,1711554645158,-227.526,0.00050192,120]
[320780273,1711554645167,-202.243,0.00050192,120]
[320780275,1711554645177,-2427.037,0.00050192,120]
[320780278,1711554645187,-1626.0,0.00050192,120]
[320780279,1711554645197,-150.0,0.00050192,2]
[320780281,1711554645207,-222.0,0.00050192,2]
[320780284,1711554645216,-4771.0,0.00050192,120]
[320780285,1711554645226,-150.0,0.00050192,2]
[320780288,1711554645236,-200.0,0.00050192,120]
[320780290,1711554645246,-1176.0,0.00050192,120]
[320780291,1711554645257,-158.0,0.00050192,2]
[320780293,1711554645268,-150.0,0.00050192,120]
[320780295,1711554645279,-1046.0,0.00050192,120]
[320780298,1711554645289,-150.0,0.00050192,120]
[320780300,1711554645299,-164.44615469,0.00050456,14]
[320780302,1711554645309,-517.24,0.00050619,2]
[320780304,1711554645319,-168.89,0.00050674,2]
[320780305,1711554645330,-200.0,0.000507,30]
[320780306,1711554645340,-75385.01872342,0.00050813,2]
[320780307,1711554645350,-150.0,0.00050824,10]
[320780308,1711554645360,-4309.09953044,0.00050835,2]
[320780309,1711554645370,-2022.52,0.00051,6]
[320780310,1711554645380,-1000.0,0.00051,120]
[320780311,1711554645390,-1672.79166718,0.000511,30]
[320780312,1711554645400,-150.0149649,0.0005115,49]
[320780313,1711554645410,-921.44,0.00051198,120]
[320780314,1711554645420,-500.0,0.0005125,120]
[320780315,1711554645430,-173.15921378,0.00051694,2]
[320780316,1711554645441,-5283.19207836,0.000517,117]
[320780318,1711554645451,-731.95,0.00051726,120]
[320780320,1711554645461,-155.0,0.00051794,120]
[320780322,1711554645472,-6532.48076419,0.000519,29]
[320780323,1711554645482,-14274.46346578,0.00052,120]
[320780324,1711554645491,-5777.01161238,0.00052,120]
[320780325,1711554645501,-1000.0,0.00052,120]
[320780326,1711554645512,-151.0,0.00052181,10]
[320780328,1711554645522,-150.0149649,0.00052378,53]
[320780330,1711554645533,-6532.48076418,0.00052553,29]
[320780331,1711554645543,-4279.8,0.000527,117]
[320780332,1711554645553,-517.24,0.00052883,2]
[320780333,1711554645563,-447856.3565,0.000529,30]
[320780334,1711554645572,-1000.0,0.00053,120]
[320780335,1711554645582,-477.965901,0.00053,25]
[320780336,1711554645592,-151.15404747,0.00053057,60]
[320780337,1711554645602,-158.6803014,0.00053068,60]
[320780338,1711554645611,-152.9250402,0.00053124,60]
[320780339,1711554645621,-151.15404747,0.00053142,60]
[320780340,1711554645631,-961.0,0.00053192,120]
[320780341,1711554645641,-2420.0,0.00053192,120]
[320780342,1711554645650,-455.82,0.00053192,120]
[320780343,1711554645659,-537.0,0.00053192,120]
[320780345,1711554645669,-1252.0,0.00053192,120]
[320780347,1711554645678,-1225.0,0.00053192,120]
[320780348,1711554645688,-1267.0,0.00053192,120]
[320780349,1711554645698,-433.0,0.00053192,120]
[320780350,1711554645708,-802.0,0.00053192,120]
[320780351,1711554645718,-604.0,0.00053192,120]
[320780352,1711554645728,-278.0,0.00053192,120]
[320780354,1711554645738,-2959.0,0.00053192,120]
[320780356,1711554645748,-1138.0,0.00053192,120]
[320780358,1711554645758,-1461.0,0.00053192,120]
[320780359,1711554645770,-150.0,0.00053192,120]
[320780360,1711554645779,-358.0,0.00053192,120]
[320780361,1711554645789,-150.0,0.00053192,120]
[320780362,1711554645799,-2423.0,0.00053192,120]
[320780363,1711554645810,-1626.0,0.00053192,120]
[320780364,1711554646057,-213.0,0.00053192,2]
[320780365,1711554646125,-4755.0,0.00053192,120]
[320780366,1711554646135,-1176.0,0.00053192,120]
[320780367,1711554646145,-1046.0,0.00053192,120]
[320780368,1711554646155,-150.0,0.00053192,120]
[320780369,1711554646164,-6532.48076418,0.00053205,30]
[320780370,1711554646174,-413.51988765,0.00053219,60]
[320780371,1711554646184,-160.81730333,0.00053241,60]
[320780372,1711554646194,-164.44615469,0.0005326,14]
[320780373,1711554646204,-152.365744,0.00053268,60]
[320780374,1711554646214,-152.28404784,0.00053291,60]
[320780375,1711554646224,-175.16019751,0.00053358,60]
[320780376,1711554646233,-157.36998597,0.00053451,60]
[320780377,1711554646243,-152.8785431,0.00053496,60]
[320780378,1711554646253,-75385.01872342,0.00053575,2]
[320780379,1711554646263,-4309.09953044,0.00053586,2]
[320780380,1711554646273,-152.6,0.000536,7]
[320780381,1711554646282,-152.6,0.000536,7]
[320780382,1711554646291,-152.6,0.000536,7]
[320780383,1711554646301,-1666.93,0.000536,7]
[320780385,1711554646311,-1666.93,0.000536,7]
[320780387,1711554646321,-1666.93,0.000536,7]
[320780389,1711554646330,-1666.93,0.000536,7]
[320780390,1711554646340,-1666.93,0.000536,7]
[320780391,1711554646350,-1666.93,0.000536,7]
[320780392,1711554646359,-1666.93,0.000536,7]
[320780393,1711554646368,-1666.93,0.000536,7]
[320780394,1711554646378,-1666.93,0.000536,7]
[320780395,1711554646388,-1666.93,0.000536,7]
[320780396,1711554646398,-1666.93,0.000536,7]
[320780397,1711554646407,-1666.93,0.000536,7]
[320780398,1711554646417,-1666.93,0.000536,7]
[320780399,1711554646427,-1666.93,0.000536,7]
[320780400,1711554646436,-1666.93,0.000536,7]
[320780401,1711554646446,-1666.93,0.000536,7]
[320780402,1711554646455,-1666.93,0.000536,7]
[320780403,1711554646465,-1666.93,0.000536,7]
[320780404,1711554646475,-1666.93,0.000536,7]
[320780405,1711554646486,-1666.93,0.000536,7]
[320780406,1711554646497,-150.0149649,0.00053606,58]
[320780407,1711554646506,-413.51988765,0.00053627,60]
[320780408,1711554646518,-158.6803014,0.00053716,60]
[320780409,1711554646528,-307.84575022,0.00053729,2]
[320780410,1711554646540,-152.8785431,0.00053734,60]
[320780411,1711554646550,-386.60453288,0.0005375,30]
[320780412,1711554646559,-413.51988765,0.00053768,60]
[320780413,1711554646569,-151.15404747,0.0005377,60]
[320780414,1711554646580,-151.15404747,0.00053791,60]
[320780415,1711554646589,-6532.48076418,0.00053858,31]
[320780416,1711554646600,-157.36998597,0.0005387,60]
[320780417,1711554646610,-1315.23037079,0.00053892,120]
[320780418,1711554646619,-144546.77104157,0.000539,30]
[320780419,1711554646628,-151.15404747,0.00053999,60]
[320780420,1711554646638,-500.0,0.00054,2]
[320780421,1711554646647,-1000.0,0.00054,120]
[320780422,1711554646657,-10000.0,0.00054,14]
[320780423,1711554646666,-151.15404747,0.00054014,60]
[320780424,1711554646676,-413.51988765,0.00054046,60]
[320780425,1711554646685,-1315.23037079,0.00054114,120]
[320780426,1711554646695,-152.365744,0.00054115,60]
[320780427,1711554646705,-152.365744,0.0005414,60]
[320780428,1711554646714,-152.8785431,0.00054145,60]
[320780429,1711554646724,-152.8785431,0.00054166,60]
[320780430,1711554646733,-2687.0,0.00054216,15]
[320780431,1711554646743,-164.0,0.00054216,15]
[320780432,1711554646753,-271.0,0.00054216,15]
[320780433,1711554646764,-2687.0,0.00054226,15]
[320780434,1711554646773,-164.0,0.00054226,15]
[320780435,1711554646783,-271.0,0.00054226,15]
[320780436,1711554646793,-2687.0,0.00054236,15]
[320780437,1711554646804,-164.0,0.00054236,15]
[320780438,1711554646813,-271.0,0.00054236,15]
[320780439,1711554646824,-500.0,0.00054245,90]
[320780440,1711554646834,-1000.0,0.00054245,90]
[320780441,1711554646845,-500.0,0.00054246,120]
[320780442,1711554646855,-500.0,0.00054246,120]
[320780443,1711554646866,-500.0,0.00054246,120]
[320780444,1711554646875,-500.0,0.00054246,120]
[320780445,1711554646885,-500.0,0.00054246,120]
[320780446,1711554646895,-500.0,0.00054246,120]
[320780447,1711554646907,-500.0,0.00054246,120]
[320780448,1711554646917,-500.0,0.00054246,120]
[320780449,1711554646926,-551.01008179,0.00054246,120]
[320780450,1711554646937,-554.78,0.00054246,120]
[320780451,1711554646946,-500.0,0.00054246,120]
[320780452,1711554646957,-500.0,0.00054246,120]
[320780453,1711554646966,-500.0,0.00054246,120]
[320780454,1711554646976,-500.0,0.00054246,120]
[320780455,1711554646986,-500.0,0.00054246,120]
[320780456,1711554646996,-500.0,0.00054246,120]
[320780457,1711554647005,-500.0,0.00054246,120]
[320780458,1711554647017,-500.0,0.00054246,120]
[320780459,1711554647027,-500.0,0.00054246,120]
[320780460,1711554647037,-500.0,0.00054246,120]
[320780461,1711554647046,-500.0,0.00054246,120]
[320780462,1711554647055,-500.0,0.00054246,120]
[320780463,1711554647065,-500.0,0.00054246,120]
[320780464,1711554647075,-523.9,0.00054246,120]
[320780465,1711554647085,-500.0,0.00054246,120]
[320780466,1711554647094,-500.0,0.00054246,120]
[320780467,1711554647104,-500.0,0.00054246,120]
[320780468,1711554647113,-500.0,0.00054246,120]
[320780469,1711554647123,-500.0,0.00054246,120]
[320780470,1711554647133,-500.0,0.00054246,120]
[320780471,1711554647142,-500.0,0.00054246,120]
[320780472,1711554647152,-500.0,0.00054246,120]
[320780473,1711554647161,-530.43,0.00054246,120]
[320780474,1711554647171,-500.0,0.00054246,120]
[320780475,1711554647180,-500.0,0.00054246,120]
[320780476,1711554647189,-500.0,0.00054246,120]
[320780477,1711554647198,-500.0,0.00054246,120]
[320780478,1711554647208,-500.0,0.00054246,120]
[320780479,1711554647218,-552.33087804,0.00054246,120]
[320780480,1711554647227,-500.0,0.00054246,120]
[320780481,1711554647236,-500.0,0.00054246,120]
[320780482,1711554647246,-500.0,0.00054246,120]
[320780483,1711554647257,-500.0,0.00054246,120]
[320780484,1711554647268,-500.0,0.00054246,120]
[320780485,1711554647277,-500.0,0.00054246,120]
[320780486,1711554647287,-500.0,0.00054246,120]
[320780487,1711554647297,-235.28655826,0.00054246,120]
[320780488,1711554647306,-500.0,0.00054246,120]
[320780489,1711554647315,-500.0,0.00054246,120]
[320780490,1711554647325,-500.0,0.00054246,120]
[320780491,1711554647334,-500.0,0.00054246,120]
[320780492,1711554647344,-500.0,0.00054246,120]
[320780493,1711554647353,-500.0,0.00054246,120]
[320780494,1711554647363,-500.0,0.00054246,120]
[320780495,1711554647372,-500.0,0.00054246,120]
[320780496,1711554647382,-1322.22,0.00054246,120]
[320780497,1711554647391,-391.54,0.00054246,120]
[320780498,1711554647401,-617.63,0.00054246,120]
[320780499,1711554647410,-1237.78,0.00054246,120]
[320780500,1711554647419,-500.0,0.00054246,120]
[320780501,1711554647429,-500.0,0.00054246,120]
[320780502,1711554647439,-500.0,0.00054246,120]
[320780503,1711554647449,-500.0,0.00054246,120]
[320780504,1711554647458,-500.0,0.00054246,120]
[320780505,1711554647467,-500.0,0.00054246,120]
[320780506,1711554647477,-500.0,0.00054246,120]
[320780507,1711554647486,-500.0,0.00054246,120]
[320780508,1711554647495,-500.0,0.00054246,120]
[320780509,1711554647505,-500.0,0.00054246,120]
[320780510,1711554647515,-273.56,0.00054246,120]
[320780511,1711554647524,-500.0,0.00054246,120]
[320780512,1711554647534,-500.0,0.00054246,120]
[320780513,1711554647543,-500.0,0.00054246,120]
[320780514,1711554647553,-500.0,0.00054246,120]
[320780515,1711554647562,-691.88,0.00054246,120]
[320780516,1711554647571,-500.0,0.00054246,120]
[320780517,1711554647580,-500.0,0.00054246,120]
[320780518,1711554647590,-749.48,0.00054246,120]
[320780519,1711554647599,-500.0,0.00054246,120]
[320780520,1711554647609,-500.0,0.00054246,120]
[320780521,1711554647619,-500.0,0.00054246,120]
[320780522,1711554647629,-500.0,0.00054246,120]
[320780523,1711554647640,-502.73,0.00054246,120]
[320780524,1711554647650,-1584.4,0.00054246,120]
[320780525,1711554647660,-500.0,0.00054246,120]
[320780526,1711554647670,-500.0,0.00054246,120]
[320780527,1711554647679,-500.0,0.00054246,120]
[320780528,1711554647689,-500.0,0.00054246,120]
[320780529,1711554647699,-1296.53,0.00054246,120]
[320780530,1711554647708,-506.31798265,0.00054246,120]
[320780531,1711554647718,-500.0,0.00054246,120]
[320780532,1711554647728,-550.3,0.00054246,120]
[320780533,1711554647737,-766.4,0.00054246,120]
[320780534,1711554647747,-715.8,0.00054246,120]
[320780535,1711554647759,-880.83,0.00054246,120]
[320780536,1711554647773,-694.26,0.00054246,120]
[320780537,1711554647784,-500.0,0.00054246,120]
[320780538,1711554647794,-1647.08,0.00054246,120]
[320780539,1711554647805,-500.0,0.00054246,120]
[320780540,1711554647815,-500.0,0.00054246,120]
[320780541,1711554647826,-500.0,0.00054246,120]
[320780542,1711554647836,-500.0,0.00054246,120]
[320780543,1711554647846,-500.0,0.00054246,120]
[320780544,1711554647856,-500.0,0.00054246,120]
[320780545,1711554647866,-500.0,0.00054246,60]
[320780546,1711554647876,-500.0,0.00054246,120]
[320780547,1711554647886,-586.02,0.00054246,120]
[320780548,1711554647896,-540.66,0.00054246,120]
[320780549,1711554647906,-500.0,0.00054246,120]
[320780550,1711554647916,-257.18352138,0.00054246,120]
[320780551,1711554647926,-1503.87,0.00054246,120]
[320780552,1711554647936,-500.0,0.00054246,120]
[320780553,1711554647946,-1323.57,0.00054246,120]
[320780554,1711554647956,-500.0,0.00054246,120]
[320780555,1711554647966,-500.0,0.00054246,120]
[320780556,1711554647976,-500.0,0.00054246,120]
[320780557,1711554647985,-500.0,0.00054246,120]
[320780558,1711554647995,-541.75,0.00054246,120]
[320780559,1711554648004,-500.70916472,0.00054246,120]
[320780560,1711554648014,-500.0,0.00054246,120]
[320780561,1711554648023,-849.1,0.00054246,120]
[320780562,1711554648032,-500.0,0.00054246,120]
[320780563,1711554648042,-500.0,0.00054246,120]
[320780564,1711554648051,-500.0,0.00054246,120]